bitfinex-derivatives/quotes_BTCF0:USTF0_20210404
["timestamp","ask_amount","ask_price","bid_price","bid_amount"]
[1617523251707,0.10725655,57618.0,57599.0,0.37725655]
[1617523252506,0.56582566,57625.0,57599.0,0.37725655]
[1617523252909,0.24,57604.0,57599.0,0.37725655]
[1617523253316,0.0064,57604.0,57599.0,0.37725655]
[1617523253527,0.56582566,57625.0,57599.0,0.37725655]
[1617523253918,0.10725655,57628.0,57599.0,0.37725655]
[1617523255506,0.56578071,57629.0,57627.0,0.10725655]
[1617523255908,0.56577948,57630.0,57628.0,0.27]
[1617523256509,0.56577948,57630.0,57628.0,0.26898284]
[1617523256710,0.10725655,57634.0,57628.0,0.26898284]
[1617523256711,0.56576337,57631.0,57628.0,0.26898284]
[1617523257712,0.56579737,57629.0,57628.0,0.26898284]
[1617523258914,0.56579124,57630.0,57628.0,0.26898284]
[1617523259314,0.56579024,57629.0,57628.0,0.26898284]
[1617523259714,0.56577425,57630.0,57628.0,0.26898284]
[1617523260916,0.5658477,57629.0,57628.0,0.26898284]
[1617523261417,0.5658468,57632.0,57628.0,0.26898284]
[1617523262018,0.5650468,57632.0,57628.0,0.26898284]
[1617523262217,0.10725655,57634.0,57628.0,0.26898284]
[1617523262817,0.2,57633.0,57628.0,0.26898284]
[1617523263418,0.10725655,57634.0,57628.0,0.26898284]
[1617523264018,0.2,57633.0,57628.0,0.26898284]
[1617523264218,1.0,57629.0,57628.0,0.26898284]
[1617523264420,1.2,57629.0,57628.0,0.26898284]
[1617523265019,0.2,57629.0,57628.0,0.26898284]
[1617523265219,1.2,57629.0,57628.0,0.26898284]
[1617523266220,1.90952576,57629.0,57628.0,0.26898284]
[1617523266619,1.90952576,57629.0,57628.0,0.26796564]
[1617523267020,6.90952576,57629.0,57628.0,0.26796564]
[1617523267421,7.19229552,57629.0,57628.0,0.26796564]
[1617523267622,2.19229552,57629.0,57628.0,0.26796564]
[1617523268421,1.19229552,57629.0,57628.0,0.26796564]
[1617523268622,7.19229552,57629.0,57628.0,0.26796564]
[1617523269622,1.99229552,57629.0,57628.0,3.58396564]
[1617523270425,1.70952576,57629.0,57628.0,3.58396564]
[1617523270624,1.0,57629.0,57628.0,3.58396564]
[1617523271526,1.0,57629.0,57628.0,3.69122219]
[1617523272227,1.56765839,57629.0,57628.0,3.69122219]
[1617523272630,1.56765839,57629.0,57628.0,0.37522219]
[1617523273532,1.0,57629.0,57628.0,0.37522219]
[1617523273732,1.0,57629.0,57628.0,3.60262219]
[1617523274333,1.0,57629.0,57628.0,0.37522219]
[1617523278335,0.10725655,57634.0,57628.0,0.37522219]
[1617523278539,0.56731414,57636.0,57628.0,0.37522219]
[1617523278738,1.0,57634.0,57633.0,3.4968]
[1617523278936,1.0,57635.0,57633.0,3.4968]
[1617523279135,1.0,57635.0,57634.0,0.27]
[1617523279536,1.0,57635.0,57634.0,0.10725655]
[1617523279738,0.56730467,57638.0,57634.0,0.53664655]
[1617523280138,0.10725655,57639.0,57634.0,0.53664655]
[1617523280139,0.67454845,57639.0,57634.0,0.53664655]
[1617523280337,1.0,57635.0,57634.0,0.53664655]
[1617523280539,0.5672919,57639.0,57634.0,0.53664655]
[1617523281141,0.56725371,57642.0,57634.0,0.53664655]
[1617523281540,0.56725254,57643.0,57641.0,0.10725655]
[1617523281941,1.0,57646.0,57642.0,0.27]
[1617523282448,0.56725681,57643.0,57642.0,0.27]
[1617523282845,1.56725681,57643.0,57642.0,0.27]
[1617523286150,0.56725681,57643.0,57642.0,0.27]
[1617523286552,1.56725681,57643.0,57642.0,0.27]
[1617523286752,1.68073681,57643.0,57642.0,0.27]
[1617523287654,1.0,57643.0,57642.0,0.27]
[1617523288053,0.70807024,57653.0,57642.0,3.67806]
[1617523288253,0.78578104,57659.0,57642.0,3.67806]
[1617523288453,0.0523,57662.0,57649.0,1.0]
[1617523288655,0.0523,57662.0,57656.0,1.0]
[1617523288855,0.0523,57662.0,57653.0,1.0]
[1617523289055,0.0523,57662.0,57657.0,0.01]
[1617523289254,0.0523,57662.0,57657.0,0.13008]
[1617523289453,0.0523,57662.0,57657.0,0.12008]
[1617523289655,0.0523,57662.0,57661.0,0.10725655]
[1617523290056,0.0523,57662.0,57661.0,0.37725655]
[1617523290257,0.0523,57662.0,57661.0,0.37624007]
[1617523290857,0.0523,57662.0,57661.0,1.37624007]
[1617523291259,0.0523,57662.0,57661.0,0.37624007]
[1617523291758,0.0523,57662.0,57661.0,1.37624007]
[1617523292158,0.0523,57662.0,57661.0,0.37624007]
[1617523292159,0.0519,57662.0,57661.0,0.37624007]
[1617523294959,0.18267,57662.0,57661.0,0.37624007]
[1617523295561,0.28992655,57662.0,57661.0,0.37624007]
[1617523295960,1.28992655,57662.0,57661.0,0.37624007]
[1617523296961,1.48992655,57662.0,57661.0,0.37624007]
[1617523297163,1.48992655,57662.0,57661.0,0.27]
[1617523297563,1.48992655,57662.0,57649.0,0.27]
[1617523297764,0.0523,57661.0,57649.0,0.27]
[1617523297963,1.0,57650.0,57648.0,2.9872]
[1617523298166,1.15303,57650.0,57645.0,0.10725655]
[1617523298365,1.15303,57650.0,57649.0,0.27]
[1617523298564,0.15303,57650.0,57649.0,0.27]
[1617523298764,0.15303,57650.0,57646.0,0.27]
[1617523298964,1.71906433,57650.0,57649.0,0.27]
[1617523299165,0.71906433,57650.0,57646.0,0.27]
[1617523299565,1.71906433,57650.0,57646.0,0.27]
[1617523299769,0.67312395,57647.0,57646.0,0.27]
[1617523300171,1.67312395,57647.0,57646.0,0.27]
[1617523300674,1.10725655,57647.0,57646.0,0.27]
[1617523301071,1.87313923,57647.0,57646.0,0.26898326]
[1617523301272,3.37313923,57647.0,57646.0,0.26898326]
[1617523301473,3.42483923,57647.0,57623.0,0.27]
[1617523301675,0.10725655,57624.0,57623.0,0.27]
[1617523301876,0.21245655,57624.0,57622.0,0.10725655]
[1617523302076,1.21245655,57624.0,57623.0,0.27]
[1617523302477,0.21245655,57624.0,57623.0,0.0207]
[1617523302677,0.21245655,57624.0,57623.0,0.0107]
[1617523302678,1.41245655,57624.0,57623.0,0.0107]
[1617523302877,1.41245655,57624.0,57593.0,0.27]
[1617523303078,2.8402,57617.0,57593.0,0.27]
[1617523303281,1.0,57600.0,57581.0,0.01]
[1617523303479,1.16442,57600.0,57594.0,0.27]
[1617523303678,1.16442,57600.0,57599.0,0.10725655]
[1617523304078,0.16442,57600.0,57599.0,0.37725655]
[1617523305781,1.16442,57600.0,57599.0,0.37725655]
[1617523307180,1.16442,57600.0,57599.0,0.27]
[1617523307582,1.16442,57600.0,57571.0,0.27]
[1617523307784,1.36442,57600.0,57592.0,0.10725655]
[1617523307984,0.36442,57600.0,57599.0,0.27]
[1617523308184,0.36442,57600.0,57593.0,0.01]
[1617523308385,0.16442,57600.0,57593.0,0.01]
[1617523308583,0.56618873,57609.0,57599.0,0.27]
[1617523308784,0.11953,57600.0,57593.0,0.27]
[1617523309184,0.11953,57600.0,57592.0,0.10725655]
[1617523309586,0.11953,57600.0,57594.0,0.27]
[1617523309786,0.10725655,57595.0,57593.0,0.27]
[1617523309985,0.10725655,57595.0,57592.0,0.10725655]
[1617523310385,0.10725655,57595.0,57593.0,0.27]
[1617523310786,1.0,57594.0,57593.0,0.27]
[1617523311586,1.10725655,57595.0,57593.0,0.27]
[1617523311787,0.10725655,57595.0,57593.0,0.27]
[1617523314089,0.10725655,57595.0,57594.0,2.6027]
[1617523314487,0.10725655,57595.0,57594.0,2.8727]
[1617523315092,1.0,57608.0,57594.0,2.8727]
[1617523315492,1.0,57614.0,57594.0,2.8727]
[1617523315691,1.0,57617.0,57594.0,2.8727]
[1617523315889,1.0,57617.0,57613.0,0.23726655]
[1617523316092,1.0,57614.0,57613.0,0.23726655]
[1617523316492,1.0,57614.0,57613.0,0.24726655]
[1617523317098,1.0,57614.0,57613.0,0.11725655]
[1617523317293,1.0,57614.0,57613.0,0.01]
[1617523317690,1.2,57614.0,57595.0,0.27]
[1617523317892,1.30725655,57614.0,57595.0,0.27]
[1617523318091,5.04345655,57614.0,57613.0,0.27]
[1617523318292,5.04345655,57614.0,57594.0,0.27]
[1617523318692,5.04345655,57614.0,57613.0,0.27]
[1617523318895,5.04345655,57614.0,57594.0,0.27]
[1617523319092,1.30725655,57614.0,57594.0,0.27]
[1617523319292,1.30725655,57614.0,57593.0,0.10725655]
[1617523319293,1.30725655,57614.0,57613.0,0.27]
[1617523319492,0.30725655,57614.0,57593.0,0.10725655]
[1617523319693,0.30725655,57614.0,57594.0,0.27]
[1617523319892,0.2,57614.0,57594.0,0.27]
[1617523320693,1.0,57598.0,57594.0,0.27]
[1617523320893,1.0,57595.0,57594.0,0.27]
[1617523321294,0.1629,57603.0,57594.0,0.27]
[1617523321895,1.10725655,57595.0,57594.0,0.27]
[1617523322295,0.10725655,57595.0,57594.0,0.27]
[1617523331904,0.1315,57622.0,57594.0,0.27]
[1617523332107,0.4683,57623.0,57594.0,0.27]
[1617523332108,0.4683,57623.0,57594.0,1.39931]
[1617523332306,0.4683,57623.0,57598.0,1.0]
[1617523332506,0.4683,57623.0,57612.0,3.234]
[1617523332705,0.4683,57623.0,57612.0,3.39184]
[1617523332906,0.4683,57623.0,57613.0,0.01]
[1617523333505,1.0,57624.0,57613.0,0.01]
[1617523333705,1.0515,57628.0,57613.0,0.01]
[1617523333907,1.0,57628.0,57625.0,0.10725655]
[1617523334106,1.0,57626.0,57625.0,0.10725655]
[1617523334506,1.0,57627.0,57625.0,0.37725655]
[1617523334706,1.0,57628.0,57625.0,0.37725655]
[1617523334906,1.4764,57632.0,57625.0,0.37725655]
[1617523335105,1.0,57630.0,57625.0,0.37725655]
[1617523335907,0.10725655,57626.0,57625.0,0.37725655]
[1617523352121,0.10705655,57626.0,57625.0,0.37725655]
[1617523352521,1.10705655,57626.0,57625.0,0.37725655]
[1617523354224,1.10705655,57626.0,57625.0,0.27]
[1617523354424,1.15835655,57626.0,57625.0,0.27]
[1617523354623,1.15835655,57626.0,57599.0,3.7454]
[1617523354624,2.65835655,57626.0,57600.0,0.27]
[1617523355023,2.7232,57616.0,57576.0,3.3557]
[1617523355224,2.7232,57616.0,57601.0,0.27]
[1617523355225,2.89096,57616.0,57601.0,0.27]
[1617523355627,1.0,57600.0,57577.0,0.27]
[1617523355826,0.14995,57600.0,57580.0,0.01]
[1617523356027,0.14995,57600.0,57598.0,0.10725655]
[1617523356427,0.14995,57600.0,57599.0,0.01]
[1617523357628,1.0,57603.0,57599.0,0.01]
[1617523358029,0.10725655,57600.0,57599.0,0.01]
[1617523358229,0.25996655,57600.0,57599.0,0.01]
[1617523362335,1.25996655,57600.0,57599.0,0.01]
[1617523362736,1.25996655,57600.0,57577.0,0.27]
[1617523363137,1.25996655,57600.0,57599.0,0.27]
[1617523363339,0.25996655,57600.0,57577.0,0.27]
[1617523363538,1.0,57597.0,57577.0,0.27]
[1617523363738,1.0,57599.0,57576.0,3.3557]
[1617523363939,1.25996655,57600.0,57577.0,0.27]
[1617523364141,1.15271,57600.0,57592.0,0.10725655]
[1617523364540,1.15271,57600.0,57593.0,0.27]
[1617523365340,1.15271,57600.0,57594.0,0.0523]
[1617523365539,1.15271,57600.0,57593.0,0.27]
[1617523365741,1.15271,57600.0,57595.0,0.27]
[1617523365941,1.0,57599.0,57595.0,0.27]
[1617523366140,0.10725655,57596.0,57593.0,0.27]
[1617523366340,1.10725655,57596.0,57592.0,0.10725655]
[1617523366742,1.10725655,57596.0,57594.0,0.27]
[1617523366940,1.10725655,57596.0,57593.0,0.27]
[1617523367144,1.10725655,57596.0,57592.0,0.10725655]
[1617523367340,1.10725655,57596.0,57595.0,0.27]
[1617523367541,1.10725655,57596.0,57593.0,0.27]
[1617523368644,1.0,57595.0,57593.0,0.27]
[1617523368844,1.0,57594.0,57593.0,0.27]
[1617523376049,4.7406,57594.0,57577.0,0.27]
[1617523376250,4.7406,57594.0,57582.0,0.10725655]
[1617523376850,4.7406,57594.0,57583.0,0.01]
[1617523377450,1.0,57584.0,57583.0,0.01]
[1617523377650,1.13037,57584.0,57583.0,0.01]
[1617523378252,1.23762655,57584.0,57583.0,0.01]
[1617523378651,0.23762655,57584.0,57583.0,0.01]
[1617523378853,1.23762655,57584.0,57583.0,0.01]
[1617523379053,1.23762655,57584.0,57565.0,0.27]
[1617523379453,1.23762655,57584.0,57583.0,0.27]
[1617523379653,1.23762655,57584.0,57558.0,0.27]
[1617523380054,1.23762655,57584.0,57557.0,0.2]
[1617523380254,1.13037,57584.0,57575.0,0.10725655]
[1617523380654,1.13037,57584.0,57576.0,0.3228]
[1617523380857,1.13037,57584.0,57576.0,0.27]
[1617523381256,1.0,57580.0,57576.0,0.27]
[1617523381657,1.0,57577.0,57576.0,0.27]
[1617523382258,1.10725655,57577.0,57576.0,0.27]
[1617523382458,1.10725655,57577.0,57564.0,0.10725655]
[1617523382658,3.98025655,57577.0,57565.0,0.01]
[1617523382857,2.98025655,57577.0,57576.0,0.27]
[1617523383057,2.98025655,57577.0,57564.0,0.10725655]
[1617523383257,1.0,57566.0,57565.0,0.27]
[1617523383459,1.11584,57566.0,57564.0,0.10725655]
[1617523383858,1.11584,57566.0,57565.0,0.27]
[1617523384060,0.11584,57566.0,57565.0,0.27]
[1617523384259,0.22309655,57566.0,57565.0,0.27]
[1617523384460,1.22309655,57566.0,57565.0,0.27]
[1617523386863,0.22309655,57566.0,57565.0,0.27]
[1617523387364,1.22309655,57566.0,57565.0,0.27]
[1617523387964,0.22309655,57566.0,57565.0,0.27]
[1617523388363,1.22309655,57566.0,57565.0,0.27]
[1617523390667,0.22309655,57566.0,57565.0,0.27]
[1617523390865,1.22309655,57566.0,57565.0,0.27]
[1617523392478,1.22309655,57566.0,57546.0,0.10725655]
[1617523392479,1.22309655,57566.0,57546.0,0.11725655]
[1617523392875,3.517,57564.0,57547.0,0.27]
[1617523393085,1.0,57558.0,57546.0,0.10725655]
[1617523393267,1.0,57554.0,57546.0,0.10725655]
[1617523393473,1.12211,57554.0,57547.0,0.27]
[1617523393681,1.0,57549.0,57547.0,0.27]
[1617523394275,0.10725655,57548.0,57547.0,0.27]
[1617523394469,1.10725655,57548.0,57547.0,0.27]
[1617523395770,0.10725655,57548.0,57547.0,0.27]
[1617523404983,0.10725655,57548.0,57547.0,2.9858]
[1617523407793,1.0,57562.0,57547.0,3.09304]
[1617523407998,1.0,57562.0,57547.0,0.37724]
[1617523408196,1.0,57574.0,57572.0,3.2245]
[1617523408394,1.10725655,57573.0,57572.0,3.34366]
[1617523408794,1.10725655,57573.0,57572.0,3.35366]
[1617523408795,0.10725655,57573.0,57572.0,3.35366]
[1617523409994,0.10725655,57573.0,57572.0,3.2345]
[1617523410894,1.10725655,57573.0,57572.0,3.2345]
[1617523411305,1.10725655,57573.0,57572.0,3.287]
[1617523411696,1.10725655,57573.0,57572.0,3.2345]
[1617523412293,0.10725655,57573.0,57572.0,3.2345]
[1617523412896,0.4796,57575.0,57572.0,3.2345]
[1617523413094,0.4796,57575.0,57572.0,3.36233]
[1617523413897,1.0,57594.0,57572.0,3.36233]
[1617523414095,1.0,57594.0,57572.0,0.13783]
[1617523414295,1.0,57594.0,57592.0,2.6803]
[1617523414695,0.0524,57593.0,57592.0,2.6803]
[1617523414896,1.0,57594.0,57592.0,2.6803]
[1617523415098,1.0,57594.0,57593.0,0.27]
[1617523415297,1.0,57594.0,57592.0,2.9503]
[1617523415498,1.0,57594.0,57592.0,2.6803]
[1617523415697,1.0,57594.0,57593.0,0.27]
[1617523416400,1.10725655,57594.0,57593.0,0.27]
[1617523416998,1.10725655,57594.0,57590.0,0.27]
[1617523417198,1.27516655,57594.0,57590.0,0.27]
[1617523417400,1.27516655,57594.0,57593.0,0.27]
[1617523417598,1.27516655,57594.0,57590.0,0.27]
[1617523418000,1.27516655,57594.0,57593.0,0.27]
[1617523418200,1.27516655,57594.0,57590.0,0.27]
[1617523418599,1.0,57591.0,57590.0,0.27]
[1617523419201,1.0,57591.0,57562.0,0.27]
[1617523419600,0.27516655,57594.0,57590.0,0.27]
[1617523419801,0.27516655,57594.0,57562.0,0.27]
[1617523420000,1.0,57584.0,57562.0,0.27]
[1617523420403,1.0,57584.0,57582.0,0.10725655]
[1617523420804,1.0,57584.0,57583.0,0.27]
[1617523421204,0.16791,57594.0,57583.0,0.27]
[1617523421405,1.0,57584.0,57583.0,0.27]
[1617523421605,1.0,57584.0,57562.0,0.27]
[1617523422005,1.0,57584.0,57583.0,0.27]
[1617523422204,0.9998,57584.0,57562.0,0.27]
[1617523422404,1.0,57584.0,57567.0,0.10725655]
[1617523422604,1.0,57584.0,57583.0,0.27]
[1617523422805,0.2,57593.0,57568.0,0.01]
[1617523423207,1.0,57584.0,57568.0,0.01]
[1617523423406,0.10878,57577.0,57568.0,0.01]
[1617523424407,0.10725655,57569.0,57568.0,0.01]
[1617523435823,0.10725655,57569.0,57568.0,0.0626]
[1617523437622,0.10725655,57569.0,57568.0,0.01]
[1617523441524,0.10878,57577.0,57568.0,0.01]
[1617523441724,1.0,57583.0,57577.0,2.7126]
[1617523442127,1.0,57583.0,57578.0,0.27]
[1617523442526,1.0,57583.0,57580.0,0.10725655]
[1617523442726,1.0,57582.0,57580.0,0.10725655]
[1617523442925,1.12685,57582.0,57581.0,0.27]
[1617523443126,0.12685,57582.0,57581.0,0.27]
[1617523444028,1.12685,57582.0,57581.0,0.27]
[1617523444430,1.12685,57582.0,57578.0,0.27]
[1617523444629,0.10725655,57579.0,57578.0,0.27]
[1617523444831,0.10725655,57579.0,57577.0,2.7126]
[1617523445030,0.10725655,57579.0,57578.0,0.27]
[1617523445942,1.0,57579.0,57578.0,0.27]
[1617523446152,1.0,57579.0,57578.0,2.9088]
[1617523446338,0.5673295,57597.0,57578.0,2.6388]
[1617523446339,1.0,57593.0,57578.0,2.6388]
[1617523446544,0.5673295,57597.0,57592.0,0.10725655]
[1617523446737,0.4695,57600.0,57592.0,0.10725655]
[1617523446738,0.4695,57600.0,57592.0,0.22441655]
[1617523446934,0.4695,57600.0,57593.0,0.27]
[1617523448535,0.10725655,57594.0,57593.0,0.27]
[1617523449534,1.10725655,57594.0,57593.0,0.27]
[1617523450536,0.10725655,57594.0,57593.0,0.27]
[1617523454038,0.4695,57600.0,57593.0,0.27]
[1617523454039,0.4695,57600.0,57593.0,3.4803]
[1617523454639,0.4695,57600.0,57599.0,0.10725655]
[1617523455040,0.4695,57600.0,57599.0,0.37725655]
[1617523455537,0.10725655,57607.0,57599.0,0.37725655]
[1617523456739,0.10725655,57607.0,57606.0,0.10725655]
[1617523457139,0.10725655,57607.0,57606.0,0.37725655]
[1617523458838,1.10725655,57607.0,57606.0,0.37725655]
[1617523460339,0.10725655,57607.0,57606.0,0.37725655]
[1617523460939,1.10725655,57607.0,57606.0,0.37725655]
[1617523461138,0.10725655,57607.0,57606.0,0.37725655]
[1617523465842,1.15935655,57607.0,57606.0,0.37725655]
[1617523466041,1.10725655,57607.0,57606.0,0.27]
[1617523466441,1.10725655,57607.0,57579.0,2.7646]
[1617523466644,0.2,57606.0,57579.0,2.7646]
[1617523466845,1.7,57606.0,57580.0,0.27]
[1617523467046,1.0,57589.0,57579.0,2.7646]
[1617523467244,1.0,57589.0,57576.0,0.10725655]
[1617523467446,1.0,57589.0,57580.0,0.27]
[1617523467447,1.0,57587.0,57580.0,0.27]
[1617523467645,1.0,57587.0,57577.0,0.27]
[1617523467845,1.10906,57589.0,57577.0,0.27]
[1617523468046,1.0,57588.0,57581.0,0.27]
[1617523468245,1.0,57588.0,57576.0,0.10725655]
[1617523468445,1.10906,57589.0,57577.0,0.27]
[1617523468946,1.10906,57589.0,57583.0,0.10725655]
[1617523469354,1.0,57588.0,57584.0,0.01]
[1617523470948,0.10725655,57585.0,57584.0,0.01]
[1617523475156,0.10725655,57585.0,57584.0,3.5628]
[1617523482061,0.10725655,57585.0,57584.0,3.6153]
[1617523483462,0.10725655,57585.0,57584.0,3.5628]
[1617523484963,1.16952,57596.0,57584.0,3.5628]
[1617523485563,1.0,57594.0,57590.0,0.10725655]
[1617523485763,1.0,57594.0,57584.0,3.5628]
[1617523485963,0.16952,57596.0,57584.0,3.5528]
[1617523485964,1.0,57588.0,57584.0,3.5528]
[1617523486163,1.0,57592.0,57584.0,3.5528]
[1617523486365,1.0,57592.0,57585.0,0.27]
[1617523486563,1.0,57591.0,57585.0,0.27]
[1617523486964,1.0,57590.0,57585.0,0.27]
[1617523487665,0.10725655,57586.0,57585.0,0.27]
[1617523504788,1.0,57588.0,57585.0,0.27]
[1617523504987,1.0,57591.0,57585.0,0.27]
[1617523505188,1.0,57590.0,57585.0,0.27]
[1617523505387,1.0,57591.0,57585.0,0.27]
[1617523505888,1.0,57591.0,57588.0,0.10725655]
[1617523506288,1.0,57590.0,57589.0,0.27]
[1617523506690,0.10728,57598.0,57589.0,0.27]
[1617523507289,1.0,57591.0,57589.0,0.27]
[1617523507890,0.10725655,57590.0,57589.0,0.27]
[1617523508391,1.10725655,57590.0,57589.0,0.27]
[1617523508991,0.10725655,57590.0,57589.0,0.27]
[1617523509191,1.10725655,57590.0,57589.0,0.27]
[1617523509692,0.10725655,57590.0,57589.0,0.27]
[1617523510093,1.10725655,57590.0,57589.0,0.27]
[1617523510292,1.15855655,57590.0,57589.0,0.27]
[1617523510494,1.10725655,57590.0,57589.0,0.27]
[1617523511996,0.10725655,57590.0,57589.0,0.27]
[1617523512194,1.10725655,57590.0,57589.0,0.27]
[1617523514797,1.15965655,57590.0,57589.0,0.27]
[1617523514997,1.10725655,57590.0,57589.0,0.27]
[1617523517498,0.10725655,57590.0,57589.0,0.27]
[1617523518098,1.10725655,57590.0,57589.0,0.27]
[1617523522402,0.10725655,57590.0,57589.0,0.27]
[1617523523601,1.10725655,57590.0,57589.0,0.27]
[1617523528707,4.46645655,57590.0,57589.0,0.27]
[1617523530508,4.46645655,57590.0,57565.0,0.27]
[1617523530909,4.46645655,57590.0,57583.0,0.27]
[1617523531110,0.27420603,57589.0,57566.0,0.27]
[1617523531509,0.27420603,57589.0,57584.0,0.27]
[1617523531710,0.27420603,57589.0,57567.0,0.27]
[1617523532112,1.0,57585.0,57572.0,0.10725655]
[1617523532313,1.13821,57585.0,57572.0,0.10725655]
[1617523532513,1.13821,57585.0,57573.0,0.01]
[1617523533215,1.13821,57585.0,57574.0,0.0528]
[1617523533414,1.13821,57585.0,57573.0,0.01]
[1617523533614,1.13821,57585.0,57575.0,0.27]
[1617523534016,1.0,57577.0,57573.0,0.27]
[1617523534215,0.10725655,57576.0,57572.0,0.10725655]
[1617523534415,0.10725655,57576.0,57573.0,0.0526]
[1617523534616,0.10725655,57576.0,57574.0,0.3214]
[1617523534816,0.10725655,57576.0,57574.0,0.0514]
[1617523535215,0.10725655,57576.0,57575.0,0.27]
[1617523535615,0.10725655,57576.0,57574.0,0.27]
[1617523535817,0.10725655,57576.0,57573.0,0.01]
[1617523536016,0.10725655,57576.0,57575.0,0.27]
[1617523536216,0.10725655,57576.0,57573.0,0.27]
[1617523536817,0.10725655,57576.0,57575.0,3.3166]
[1617523537217,0.10725655,57576.0,57575.0,3.5866]
[1617523545831,0.10725655,57576.0,57575.0,0.27]
[1617523546030,3.24726655,57576.0,57575.0,0.27]
[1617523546231,3.24726655,57576.0,57573.0,0.27]
[1617523546431,4.24726655,57576.0,57573.0,0.27]
[1617523546630,4.24726655,57576.0,57561.0,0.55453942]
[1617523546631,1.22776655,57576.0,57575.0,0.27]
[1617523546848,0.22776655,57576.0,57574.0,0.27]
[1617523547049,1.22776655,57576.0,57574.0,0.27]
[1617523547231,2.5056,57568.0,57557.0,0.27]
[1617523547432,2.5056,57568.0,57563.0,0.01]
[1617523547833,2.5056,57568.0,57558.0,0.27]
[1617523548035,2.5056,57568.0,57555.0,0.27]
[1617523548232,2.5056,57568.0,57562.0,0.10725655]
[1617523548633,2.5056,57568.0,57563.0,0.27]
[1617523549033,1.0,57564.0,57563.0,0.27]
[1617523549234,1.10544,57564.0,57563.0,0.27]
[1617523550235,1.21269655,57564.0,57563.0,0.27]
[1617523550635,0.21269655,57564.0,57563.0,0.27]
[1617523550836,3.58819655,57564.0,57563.0,0.27]
[1617523551038,4.58819655,57564.0,57550.0,0.27]
[1617523551236,3.58819655,57564.0,57546.0,0.0527]
[1617523551436,4.58819655,57564.0,57547.0,0.27]
[1617523551636,1.0,57551.0,57546.0,0.0527]
[1617523552037,0.13155,57551.0,57547.0,0.27]
[1617523552437,0.13155,57551.0,57548.0,0.10725655]
[1617523552837,0.0523,57550.0,57548.0,0.10725655]
[1617523553038,0.0523,57550.0,57549.0,0.27]
[1617523553238,0.13155,57551.0,57549.0,0.27]
[1617523554339,0.10725655,57550.0,57549.0,0.27]
[1617523554941,0.10725655,57550.0,57549.0,0.3226]
[1617523557944,1.10725655,57550.0,57549.0,0.27]
[1617523558172,4.17585655,57550.0,57549.0,0.27]
[1617523558351,4.17585655,57550.0,57529.0,0.10725655]
[1617523558550,1.10725655,57550.0,57529.0,0.10725655]
[1617523558748,1.10725655,57550.0,57530.0,0.01]
[1617523558947,2.9721,57531.0,57530.0,0.01]
[1617523559154,3.09599,57531.0,57530.0,0.01]
[1617523559347,3.09599,57531.0,57525.0,0.27]
[1617523559547,4.09599,57531.0,57526.0,0.0516]
[1617523559746,4.09599,57531.0,57530.0,0.01]
[1617523559958,4.09599,57531.0,57526.0,0.3216]
[1617523560160,1.12389,57531.0,57527.0,0.27]
[1617523560361,0.12389,57531.0,57530.0,0.01]
[1617523560546,0.12389,57531.0,57528.0,2.7717]
[1617523560947,0.12389,57531.0,57529.0,0.01]
[1617523561152,0.12389,57531.0,57528.0,2.7717]
[1617523561558,0.12389,57531.0,57529.0,0.27]
[1617523562356,0.12389,57531.0,57530.0,0.10725655]
[1617523562752,0.12389,57531.0,57530.0,0.37725655]
[1617523564355,0.10725655,57531.0,57530.0,0.37725655]
[1617523564556,0.10725655,57531.0,57530.0,0.27]
[1617523564756,3.77875655,57531.0,57530.0,0.27]
[1617523564957,3.77875655,57531.0,57513.0,0.27]
[1617523565156,3.91577655,57531.0,57530.0,0.27]
[1617523565555,3.91577655,57531.0,57518.0,0.0527]
[1617523565755,3.91577655,57531.0,57530.0,0.27]
[1617523565955,2.91577655,57531.0,57530.0,0.27]
[1617523566156,2.91577655,57531.0,57518.0,0.0527]
[1617523566356,3.80852,57531.0,57530.0,0.27]
[1617523566557,2.80852,57531.0,57530.0,0.27]
[1617523566755,2.80852,57531.0,57523.0,0.10725655]
[1617523566956,2.80852,57531.0,57530.0,0.27]
[1617523567357,2.80852,57531.0,57523.0,0.10725655]
[1617523567556,2.80852,57531.0,57530.0,0.27]
[1617523567957,2.80852,57531.0,57523.0,0.10725655]
[1617523568157,2.80852,57531.0,57526.0,0.27]
[1617523568358,0.0518,57543.0,57524.0,0.27]
[1617523568359,0.10725655,57527.0,57524.0,0.27]
[1617523568559,0.10725655,57527.0,57523.0,0.10725655]
[1617523568760,0.10725655,57527.0,57526.0,3.6095]
[1617523568961,0.0518,57543.0,57526.0,3.74511]
[1617523568962,1.0,57543.0,57526.0,3.74511]
[1617523569161,1.0,57543.0,57526.0,4.01511]
[1617523569859,1.0,57543.0,57527.0,0.0515]
[1617523570261,1.0,57543.0,57528.0,0.27]
[1617523570461,1.0,57543.0,57539.0,0.10725655]
[1617523570660,1.0,57541.0,57539.0,0.10725655]
[1617523570860,0.15089,57541.0,57540.0,0.27]
[1617523571463,1.15089,57541.0,57540.0,0.27]
[1617523572464,1.25814655,57541.0,57540.0,0.27]
[1617523574272,1.25814655,57541.0,57540.0,3.3819]
[1617523574470,0.10725655,57541.0,57540.0,3.48912]
[1617523574668,1.4618,57554.0,57540.0,3.48912]
[1617523575670,1.0,57549.0,57540.0,3.48912]
[1617523576470,1.0,57549.0,57548.0,0.10725655]